bitfinex/quotes_BTCUSD_20251024
["timestamp","ask_amount","ask_price","bid_price","bid_amount"]
[1761349164827,3.45481608,111150.0,111140.0,0.00033913]
[1761349167123,3.42245844,111150.0,111140.0,0.00033913]
[1761349171104,3.45481608,111150.0,111140.0,0.00033913]
[1761349172878,3.45517914,111150.0,111140.0,0.00033913]
[1761349174957,0.1800018,111110.0,111100.0,7.33572196]
[1761349175164,2.99876495,111110.0,111100.0,7.30873655]
[1761349175366,3.00015916,111110.0,111100.0,7.30873655]
[1761349175567,3.02440822,111110.0,111100.0,7.30873655]
[1761349175741,3.0514517,111110.0,111100.0,7.30873655]
[1761349175949,3.11844012,111110.0,111100.0,7.30873655]
[1761349176596,3.11844012,111110.0,111100.0,7.30973655]
[1761349176898,3.11844012,111110.0,111100.0,7.30873655]
[1761349177263,3.11844012,111110.0,111100.0,7.30973655]
[1761349177807,3.42661655,111110.0,111100.0,7.30973655]
[1761349178023,2.96837331,111110.0,111100.0,7.30973655]
[1761349179227,2.97756237,111110.0,111100.0,7.30973655]
[1761349179437,2.96837331,111110.0,111100.0,7.30973655]
[1761349180680,2.96837331,111110.0,111100.0,7.3110936]
[1761349181297,3.46108875,111110.0,111100.0,6.80556707]
[1761349181653,4.86597102,111110.0,111100.0,5.25648114]
[1761349181863,3.94144173,111110.0,111100.0,5.03648968]
[1761349182047,3.91526645,111110.0,111100.0,4.88854221]
[1761349182264,3.93946351,111110.0,111100.0,4.78560173]
[1761349182470,3.94046351,111110.0,111100.0,4.59033019]
[1761349182671,3.94046351,111110.0,111100.0,4.25389163]
[1761349182907,3.94046351,111110.0,111100.0,4.22685893]
[1761349183152,3.94146351,111110.0,111100.0,4.00908911]
[1761349183375,3.94146351,111110.0,111100.0,3.98205641]
[1761349183590,3.94046351,111110.0,111100.0,3.95502371]
[1761349183807,3.94046351,111110.0,111100.0,3.92799101]
[1761349184024,3.94346351,111110.0,111100.0,3.90095831]
[1761349184236,3.94346351,111110.0,111100.0,3.87392561]
[1761349184450,3.94346351,111110.0,111100.0,3.3309252]
[1761349184661,3.94346351,111110.0,111100.0,3.2768598]
[1761349184883,3.94346351,111110.0,111100.0,2.86727386]
[1761349185097,3.94346351,111110.0,111100.0,2.84024116]
[1761349185315,3.94346351,111110.0,111100.0,2.81320846]
[1761349185553,3.94346351,111110.0,111100.0,2.78617576]
[1761349185788,3.94346351,111110.0,111100.0,2.75914306]
[1761349185999,3.94346351,111110.0,111100.0,2.73211036]
[1761349186278,3.94346351,111110.0,111100.0,2.70507766]
[1761349186493,3.94346351,111110.0,111100.0,2.67804496]
[1761349194810,3.97582115,111110.0,111100.0,2.67804496]
[1761349195344,3.95162409,111110.0,111100.0,2.67804496]
[1761349196348,3.96780291,111110.0,111100.0,2.67804496]
[1761349197591,3.96772217,111110.0,111100.0,2.67804496]
[1761349198672,3.95772218,111110.0,111100.0,2.67804496]
[1761349198810,3.96772217,111110.0,111100.0,2.67804496]
[1761349202214,3.91918571,111110.0,111100.0,2.67804496]
[1761349202429,3.94536099,111110.0,111100.0,2.67804496]
[1761349203231,4.0102188,111110.0,111100.0,2.67804496]
[1761349207202,4.0102188,111110.0,111100.0,2.60506151]
[1761349207426,3.94536099,111110.0,111100.0,2.60506151]
[1761349211354,4.0102188,111110.0,111100.0,2.60506151]
[1761349212778,3.98317532,111110.0,111100.0,2.60506151]
[1761349216224,3.88845532,111110.0,111100.0,2.60506151]
[1761349217267,3.96933081,111110.0,111100.0,2.53207759]
[1761349217491,3.8884477,111110.0,111100.0,2.53207759]
[1761349223145,3.82359751,111110.0,111100.0,2.53207759]
[1761349224904,3.87223508,111110.0,111100.0,2.00785552]
[1761349225908,3.87223508,111110.0,111100.0,1.52297529]
[1761349226109,3.87223508,111110.0,111100.0,1.3470405]
[1761349226898,3.87223508,111110.0,111100.0,0.6131152]
[1761349226899,4.52514151,111110.0,111100.0,0.6131152]
[1761349227101,5.0928568,111110.0,111100.0,0.45130888]
[1761349227365,5.0928568,111110.0,111100.0,0.42427942]
[1761349227575,5.07345348,111110.0,111100.0,0.39724996]
[1761349227745,5.07345348,111110.0,111100.0,0.3702205]
[1761349227959,5.07345348,111110.0,111100.0,0.34319104]
[1761349228134,5.07345348,111110.0,111100.0,0.31616158]
[1761349228331,5.0929048,111110.0,111100.0,0.28913212]
[1761349228677,5.0929048,111110.0,111100.0,0.26210266]
[1761349228817,5.0929048,111110.0,111100.0,0.2350732]
[1761349229020,5.06672952,111110.0,111100.0,0.2350732]
[1761349232884,3.83473458,111110.0,111100.0,0.2350732]
[1761349234305,3.85275458,111110.0,111100.0,0.2350732]
[1761349234866,3.60285458,111110.0,111100.0,0.2350732]
[1761349237202,3.66769231,111110.0,111100.0,0.2350732]
[1761349238230,3.64824099,111110.0,111100.0,0.16208332]
[1761349238905,3.638241,111110.0,111100.0,0.16208332]
[1761349239128,3.64824099,111110.0,111100.0,0.16208332]
[1761349239974,3.638241,111110.0,111100.0,0.16208332]
[1761349240175,3.64824099,111110.0,111100.0,0.16208332]
[1761349240811,3.638241,111110.0,111100.0,0.16208332]
[1761349241021,3.64824099,111110.0,111100.0,0.16208332]
[1761349242824,3.638241,111110.0,111100.0,0.16208332]
[1761349243033,3.64824099,111110.0,111100.0,0.16208332]
[1761349254213,3.638241,111110.0,111100.0,0.16208332]
[1761349254431,3.64824099,111110.0,111100.0,0.16208332]
[1761349255987,3.55341099,111110.0,111100.0,0.16208332]
[1761349261226,3.543411,111110.0,111100.0,0.16208332]
[1761349261445,3.55341099,111110.0,111100.0,0.16208332]
[1761349265258,3.543411,111110.0,111100.0,0.16208332]
[1761349265454,3.55341099,111110.0,111100.0,0.16208332]
[1761349265873,3.543411,111110.0,111100.0,0.16208332]
[1761349266079,3.55341099,111110.0,111100.0,0.16208332]
[1761349269554,3.543411,111110.0,111100.0,0.16208332]
[1761349269786,3.55341099,111110.0,111100.0,0.16208332]
[1761349270782,3.24487917,111110.0,111100.0,0.16208332]
[1761349271420,3.55341099,111110.0,111100.0,0.16208332]
[1761349273271,3.24487917,111110.0,111100.0,0.16208332]
[1761349274661,3.55341099,111110.0,111100.0,0.16208332]
[1761349275523,3.543411,111110.0,111100.0,0.16208332]
[1761349275971,2.7588779,111110.0,111100.0,0.16208332]
[1761349276179,2.73463915,111110.0,111100.0,0.16208332]
[1761349276376,2.76082144,111110.0,111100.0,0.18912965]
[1761349276615,2.77082143,111110.0,111100.0,0.18912965]
[1761349276830,2.76082144,111110.0,111100.0,0.18912965]
[1761349277037,3.10082144,111110.0,111100.0,0.18912965]
[1761349277239,3.19064045,111110.0,111100.0,0.18912965]
[1761349277403,3.22303348,111110.0,111100.0,0.18912965]
[1761349279874,3.17441449,111110.0,111100.0,0.18912965]
[1761349284351,3.19868754,111110.0,111100.0,0.18912965]
[1761349284907,3.21671754,111110.0,111100.0,0.18912965]
[1761349294589,3.19244449,111110.0,111100.0,0.18912965]
[1761349294794,3.52495223,111110.0,111100.0,0.18912965]
[1761349296015,3.49819237,111110.0,111100.0,0.18912965]
[1761349296242,3.47392043,111110.0,111100.0,0.18912965]
[1761349296892,3.48592043,111110.0,111100.0,0.18912965]
[1761349302506,3.53453942,111110.0,111100.0,0.18912965]
[1761349305471,3.50214639,111110.0,111100.0,0.18912965]
[1761349326479,3.50214639,111110.0,111100.0,0.16208332]
[1761349344302,3.51651205,111110.0,111100.0,0.16208332]
[1761349345242,3.51551205,111110.0,111100.0,0.16208332]
[1761349345419,3.51251205,111110.0,111100.0,0.16208332]
[1761349345621,3.51351205,111110.0,111100.0,0.16208332]
[1761349345864,3.51451205,111110.0,111100.0,0.16208332]
[1761349346068,3.51351205,111110.0,111100.0,0.16208332]
[1761349346277,3.51451205,111110.0,111100.0,0.16208332]
[1761349354732,3.20612738,111110.0,111100.0,0.16208332]
[1761349357287,3.22415738,111110.0,111100.0,0.16208332]
[1761349357531,3.20612738,111110.0,111100.0,0.16208332]
[1761349358561,3.11630837,111110.0,111100.0,0.16208332]
[1761349377626,3.08391271,111110.0,111100.0,0.16208332]
[1761349383336,3.11629687,111110.0,111100.0,0.16208332]
[1761349384681,3.11629687,111110.0,111100.0,0.16198293]
[1761349393540,3.11629687,111110.0,111100.0,0.18902902]
[1761349394250,3.20611588,111110.0,111100.0,0.18902902]
[1761349397140,2.89773293,111110.0,111100.0,0.18902902]
[1761349397321,3.11629687,111110.0,111100.0,0.18902902]
[1761349404380,3.08391271,111110.0,111100.0,0.18902902]
[1761349414856,3.39233132,111110.0,111100.0,0.18902902]
[1761349419194,3.7007321,111110.0,111100.0,0.16198293]
[1761349419588,3.72777982,111110.0,111100.0,0.16198293]
[1761349419734,3.81759883,111110.0,111100.0,0.16198293]
[1761349438023,3.76897984,111110.0,111100.0,0.16198293]
[1761349439375,3.83381757,111110.0,111100.0,0.16198293]
[1761349439994,3.43559778,111110.0,111100.0,0.16198293]
[1761349450511,3.74399856,111110.0,111100.0,0.16198293]
[1761349452722,3.41929998,111110.0,111100.0,0.16198293]
[1761349456556,3.39225226,111110.0,111100.0,0.16198293]
[1761349461475,3.42461399,111110.0,111100.0,0.16198293]
[1761349461881,3.514433,111110.0,111100.0,0.16198293]
[1761349471490,3.48207127,111110.0,111100.0,0.16198293]
[1761349476015,3.79047205,111110.0,111100.0,0.16198293]
[1761349476792,3.17369115,111110.0,111100.0,0.16198293]
[1761349479939,3.48211259,111110.0,111100.0,0.16198293]
[1761349481012,3.17369115,111110.0,111100.0,0.16198293]
[1761349494698,3.12515122,111110.0,111100.0,0.16198293]
[1761349495962,3.43357266,111110.0,111100.0,0.16198293]
[1761349500085,3.12515122,111110.0,111100.0,0.16198293]
[1761349504828,3.03533221,111110.0,111100.0,0.16198293]
[1761349506943,3.06237993,111110.0,111100.0,0.16198293]
[1761349536843,3.37076037,111110.0,111100.0,0.16198293]
[1761349538832,3.41936841,111110.0,111100.0,0.16198293]
[1761349544082,3.40746888,111110.0,111100.0,0.16198293]
[1761349548790,3.48436977,111110.0,111100.0,0.16198293]
[1761349548993,3.40746888,111110.0,111100.0,0.16198293]
[1761349552942,2.790667,111110.0,111100.0,0.16198293]
[1761349553188,3.40746888,111110.0,111100.0,0.16198293]
[1761349556551,3.41281305,111110.0,111100.0,0.16198293]
[1761349556919,3.41281305,111110.0,111100.0,0.18902943]
[1761349565655,3.40090876,111110.0,111100.0,0.18902943]
[1761349566458,3.40090876,111110.0,111100.0,0.16198293]
[1761349566660,3.42795526,111110.0,111100.0,0.16198293]
[1761349568632,3.51777427,111110.0,111100.0,0.16198293]
[1761349569979,3.42795526,111110.0,111100.0,0.16198293]
[1761349572718,2.81115338,111110.0,111100.0,0.16198293]
[1761349572930,3.42795526,111110.0,111100.0,0.16198293]
[1761349575011,3.41605276,111110.0,111100.0,0.16198293]
[1761349581909,3.40414847,111110.0,111100.0,0.16198293]
[1761349585294,3.37175658,111110.0,111100.0,0.16198293]
[1761349587880,3.46157559,111110.0,111100.0,0.16198293]
[1761349593275,3.76997653,111110.0,111100.0,0.16198293]
[1761349594075,3.46157559,111110.0,111100.0,0.16198293]
[1761349598809,3.15319091,111110.0,111100.0,0.16198293]
[1761349603962,3.0633719,111110.0,111100.0,0.16198293]
[1761349621952,3.3717891,111110.0,111100.0,0.16198293]
[1761349622959,3.0633719,111110.0,111100.0,0.16198293]
[1761349624842,3.05146998,111110.0,111100.0,0.16198293]
[1761349627436,3.35988718,111110.0,111100.0,0.16198293]
[1761349628090,3.38278154,111110.0,111100.0,0.16198293]
[1761349633357,0.21621648,111090.0,111080.0,0.0274465]
[1761349633606,2.92291898,111090.0,111080.0,0.0004]
[1761349634437,2.92291898,111090.0,111080.0,0.02744767]
[1761349634852,2.92291898,111090.0,111080.0,0.02944767]
[1761349639169,2.92291898,111090.0,111080.0,0.03012644]
[1761349641008,3.00083608,111090.0,111080.0,0.03012644]
[1761349641296,3.42448794,111090.0,111080.0,0.00307877]
[1761349641459,3.42722232,111090.0,111080.0,0.00307877]
[1761349641664,3.40030946,111090.0,111080.0,0.00307877]
[1761349641870,3.4489175,111090.0,111080.0,0.00307877]
[1761349642096,3.47583036,111090.0,111080.0,0.00307877]
[1761349642397,3.42722232,111090.0,111080.0,0.00107877]
[1761349642716,3.42822232,111090.0,111080.0,0.00107877]
[1761349643057,3.42922232,111090.0,111080.0,0.00107877]
[1761349643258,2.60835223,111090.0,111080.0,0.00107877]
[1761349643463,3.31512294,111090.0,111080.0,0.00107877]
[1761349645484,3.35130522,111090.0,111080.0,0.00107877]
[1761349646126,3.32439236,111090.0,111080.0,0.00107877]
[1761349646336,3.34866798,111090.0,111080.0,0.00107877]
[1761349647621,3.31624588,111090.0,111080.0,0.00107877]
[1761349651172,3.2800636,111090.0,111080.0,0.00107877]
[1761349653158,2.9716464,111090.0,111080.0,0.00107877]
[1761349653578,3.2800636,111090.0,111080.0,0.00107877]
[1761349658540,3.07368787,111090.0,111080.0,0.00107877]
[1761349658753,3.07373227,111090.0,111080.0,0.00107877]
[1761349660223,3.09315193,111090.0,111080.0,0.00107877]
[1761349663261,3.18297094,111090.0,111080.0,0.00107877]
[1761349663466,3.17975202,111090.0,111080.0,0.00107877]
[1761349663672,3.08993301,111090.0,111080.0,0.00107877]
[1761349664280,2.75444233,111090.0,111080.0,0.01908381]
[1761349664651,2.75444233,111090.0,111080.0,0.04613243]
[1761349669654,2.75444233,111090.0,111080.0,0.02812739]
[1761349675277,2.77871795,111090.0,111080.0,0.02812739]
[1761349686822,2.8057657,111090.0,111080.0,0.02812739]
[1761349687033,2.8057657,111090.0,111080.0,0.00107877]
[1761349691189,2.40750729,111090.0,111080.0,0.00107877]
[1761349691396,2.37594669,111090.0,111080.0,0.00107877]
[1761349691642,2.32462332,111090.0,111080.0,0.00107877]
[1761349691962,2.66462332,111090.0,111080.0,0.00107877]
[1761349692441,2.66362332,111090.0,111080.0,0.00107877]
[1761349692654,0.36046875,111090.0,111080.0,0.19913422]
[1761349692843,0.00104909,111090.0,111080.0,0.49056858]
[1761349693071,0.00104909,111090.0,111080.0,0.51761138]
[1761349693278,4.909e-05,111090.0,111080.0,0.20917198]
[1761349693896,4.909e-05,111090.0,111080.0,0.20817198]
[1761349694423,4.909e-05,111090.0,111080.0,0.18312918]
[1761349694640,4.909e-05,111090.0,111080.0,0.18112918]
[1761349694848,4.909e-05,111090.0,111080.0,0.18512918]
[1761349698799,4.909e-05,111090.0,111080.0,0.49356858]
[1761349701255,4.909e-05,111090.0,111080.0,0.80200798]
[1761349701465,4.909e-05,111090.0,111080.0,0.89182699]
[1761349702333,4.909e-05,111090.0,111080.0,0.91886801]
[1761349710297,4.909e-05,111090.0,111080.0,0.61042861]
[1761349711716,4.909e-05,111090.0,111080.0,0.91886801]
[1761349711915,4.909e-05,111090.0,111080.0,0.30198921]
[1761349712107,4.909e-05,111090.0,111080.0,0.61042861]
[1761349715006,4.909e-05,111090.0,111080.0,0.91886801]
[1761349715932,4.909e-05,111090.0,111080.0,0.30198921]
[1761349716138,4.909e-05,111090.0,111080.0,0.61042861]
[1761349718500,0.26916632,111110.0,111090.0,0.18001818]
[1761349718707,0.60916632,111110.0,111100.0,0.0180018]
[1761349718911,0.78919751,111110.0,111100.0,0.0180018]
[1761349719827,0.78919751,111110.0,111100.0,0.0190018]
[1761349720005,0.7981976,111110.0,111100.0,0.0190018]
[1761349720916,0.52903128,111110.0,111100.0,0.0190018]
[1761349721114,0.8372745,111110.0,111100.0,0.0190018]
[1761349724109,0.8553045,111110.0,111100.0,0.0190018]
[1761349724317,0.8372745,111110.0,111100.0,0.0190018]
[1761349725082,0.52903128,111110.0,111100.0,0.0190018]
[1761349728184,0.52903128,111110.0,111100.0,0.1990198]
[1761349728391,0.52903128,111110.0,111100.0,0.181018]
[1761349729558,0.52903128,111110.0,111100.0,0.001]
[1761349729767,0.52903128,111110.0,111100.0,0.0190018]
[1761349734768,0.52903128,111110.0,111100.0,0.001]
[1761349741786,0.52903128,111110.0,111100.0,0.181018]
[1761349741997,0.52903128,111110.0,111100.0,0.001]
[1761349742834,3.8372745,111110.0,111100.0,0.001]
[1761349755251,3.86431649,111110.0,111100.0,0.001]
[1761349758748,3.9541355,111110.0,111100.0,0.001]
[1761349758977,3.97841112,111110.0,111100.0,0.001]
[1761349763851,4.06823013,111110.0,111100.0,0.001]
[1761349764053,4.13683451,111110.0,111100.0,0.001]
[1761349764241,4.11255889,111110.0,111100.0,0.001]
[1761349764653,4.13948103,111110.0,111100.0,0.001]
[1761349764897,3.70152854,111110.0,111100.0,0.001]
[1761349766004,0.180018,111100.0,111090.0,0.00048694]
[1761349766225,3.57808023,111100.0,111090.0,0.00048694]
[1761349766731,3.6051272,111100.0,111090.0,0.00048694]
[1761349766932,3.9451272,111100.0,111090.0,0.00048694]
[1761349767501,3.9451272,111100.0,111090.0,0.00148694]
[1761349768569,4.01100126,111100.0,111090.0,0.00148694]
[1761349772819,3.63688398,111100.0,111090.0,0.00148694]
[1761349773326,3.9451272,111100.0,111090.0,0.00148694]
[1761349774894,3.63688398,111100.0,111090.0,0.00148694]
[1761349779407,0.63688398,111100.0,111090.0,0.00148694]
[1761349779616,3.63688398,111100.0,111090.0,0.00148694]
[1761349782870,3.94518358,111100.0,111090.0,0.00148694]
[1761349784965,0.94518358,111100.0,111090.0,0.00148694]
[1761349785170,3.94518358,111100.0,111090.0,0.00148694]
[1761349787318,0.94518358,111100.0,111090.0,0.00148694]
[1761349787496,3.94518358,111100.0,111090.0,0.00148694]
[1761349791818,3.85536457,111100.0,111090.0,0.00148694]
[1761349792038,3.54706497,111100.0,111090.0,0.00148694]
[1761349792240,3.85536457,111100.0,111090.0,0.00148694]
[1761349796939,0.85536457,111100.0,111090.0,0.00148694]
[1761349797147,3.85536457,111100.0,111090.0,0.00148694]
[1761349797953,3.54706497,111100.0,111090.0,0.00148694]
[1761349798347,0.54706497,111100.0,111090.0,0.00148694]
[1761349798547,3.54706497,111100.0,111090.0,0.00148694]
[1761349803357,3.85536457,111100.0,111090.0,0.00148694]
[1761349806429,3.8283176,111100.0,111090.0,0.00148694]
[1761349806911,0.8283176,111100.0,111090.0,0.00148694]
[1761349807135,3.8283176,111100.0,111090.0,0.00148694]
[1761349807675,3.520018,111100.0,111090.0,0.00148694]
[1761349807879,3.8283176,111100.0,111090.0,0.00148694]
[1761349808834,3.520018,111100.0,111090.0,0.00148694]
[1761349809036,3.8283176,111100.0,111090.0,0.18152114]
[1761349809985,3.6350134,111100.0,111090.0,0.18152114]
[1761349810195,3.6544574,111100.0,111090.0,0.18152114]
[1761349810606,3.8344754,111100.0,111090.0,0.18152114]
[1761349812155,3.5261758,111100.0,111090.0,0.18152114]
[1761349812766,3.3267138,111100.0,111090.0,0.48982074]
[1761349813207,3.3267138,111100.0,111090.0,0.18152114]
[1761349814203,3.3267138,111100.0,111090.0,0.18052114]
[1761349814571,3.3267138,111100.0,111090.0,0.18252114]
[1761349815137,3.0,111100.0,111090.0,0.18252114]
[1761349815902,3.180018,111100.0,111090.0,0.18252114]
[1761349816654,3.0,111100.0,111090.0,0.18252114]
[1761349816973,0.49733088,111110.0,111090.0,0.18252114]
[1761349817164,3.180018,111100.0,111090.0,0.18252114]
[1761349817731,0.520018,111100.0,111090.0,0.18052114]
[1761349817930,3.520018,111100.0,111090.0,0.18052114]
[1761349818705,3.34,111100.0,111090.0,0.18252114]
[1761349819887,3.520018,111100.0,111090.0,0.18252114]
[1761349820522,3.34,111100.0,111090.0,0.18252114]
[1761349821320,0.34,111100.0,111090.0,0.18252114]
[1761349841366,3.0,111100.0,111090.0,0.18252114]
[1761349844646,0.180018,111100.0,111090.0,0.18252114]
[1761349845061,0.180018,111100.0,111090.0,0.00248694]
[1761349845270,0.50771302,111100.0,111090.0,0.00248694]
[1761349846554,0.50771302,111100.0,111090.0,0.00048694]
[1761349847108,0.84771302,111100.0,111090.0,0.00048694]
[1761349847311,0.82825733,111100.0,111090.0,0.00048694]
[1761349847562,0.520018,111100.0,111090.0,0.00048694]
[1761349851435,0.53946334,111100.0,111090.0,0.00048694]
[1761349865564,0.53946334,111100.0,111090.0,0.18052114]
[1761349869136,0.53946334,111100.0,111090.0,0.18252114]
[1761349875342,0.5665048,111100.0,111090.0,0.18252114]
[1761349887763,0.5665048,111100.0,111090.0,0.00248694]
[1761349904773,0.87480406,111100.0,111090.0,0.00248694]
[1761349915990,0.5665048,111100.0,111090.0,0.00248694]
[1761349916192,0.87480406,111100.0,111090.0,0.00248694]
[1761349918751,0.5665048,111100.0,111090.0,0.00248694]
[1761349919082,0.87480406,111100.0,111090.0,0.00248694]
[1761349922396,0.69049746,111100.0,111090.0,0.00248694]
[1761349922536,0.87051546,111100.0,111090.0,0.00248694]
[1761349939945,0.00019152,111090.0,111080.0,0.18445013]
[1761349940191,0.00019152,111090.0,111080.0,0.18453861]
[1761349940504,0.00019152,111090.0,111080.0,0.18487801]
[1761349940729,0.02723434,111090.0,111080.0,0.18487801]
[1761349942213,0.02723434,111090.0,111080.0,0.18787801]
[1761349945277,0.02704282,111090.0,111080.0,0.18768649]
[1761349951760,0.20707702,111090.0,111080.0,0.18768649]
[1761349952591,0.82474632,111100.0,111080.0,0.18768649]
[1761349952726,0.84420316,111100.0,111080.0,0.18768649]
[1761349952926,0.87124598,111100.0,111080.0,0.18768649]
[1761349953184,0.87124598,111100.0,111080.0,0.21472931]
[1761349953388,0.87124598,111100.0,111080.0,0.21172931]
[1761349954155,0.87124598,111100.0,111090.0,0.1800342]
[1761349954555,0.38292872,111100.0,111090.0,0.1800342]
[1761349954762,0.56294672,111100.0,111090.0,0.1800342]
[1761349955177,0.87124598,111100.0,111090.0,0.1810342]
[1761349959143,0.85178914,111100.0,111090.0,0.1810342]
[1761349962211,0.54348988,111100.0,111090.0,0.1810342]
[1761349962375,0.85178914,111100.0,111090.0,0.1810342]
[1761349962577,0.87124223,111100.0,111090.0,0.1810342]
[1761349964784,0.56294297,111100.0,111090.0,0.1810342]
[1761349981875,0.38292497,111100.0,111090.0,0.1810342]
[1761349982340,0.56294297,111100.0,111090.0,0.1810342]
[1761349991225,0.38292497,111100.0,111090.0,0.1810342]
[1761349991845,0.56294297,111100.0,111090.0,0.1810342]
[1761349992060,0.38292497,111100.0,111090.0,0.1810342]
[1761349992482,0.56294297,111100.0,111090.0,0.1810342]
[1761350008407,0.56294609,111100.0,111090.0,0.1810342]
[1761350013795,0.38292809,111100.0,111090.0,0.1810342]
[1761350014009,0.56294609,111100.0,111090.0,0.1810342]
[1761350017516,0.38292809,111100.0,111090.0,0.1810342]
[1761350025787,0.56294609,111100.0,111090.0,0.1810342]
[1761350026805,0.87120482,111100.0,111090.0,0.1810342]
[1761350028055,0.56294609,111100.0,111090.0,0.1810342]
[1761350029713,0.87120482,111100.0,111090.0,0.1810342]
[1761350030705,0.69118682,111100.0,111090.0,0.1810342]
[1761350030906,0.38292809,111100.0,111090.0,0.1810342]
[1761350036551,0.56294609,111100.0,111090.0,0.1810342]
[1761350042772,0.87120482,111100.0,111090.0,0.1810342]
[1761350044493,0.56294609,111100.0,111090.0,0.1810342]
[1761350044836,0.87120482,111100.0,111090.0,0.1810342]
[1761350049278,0.56294609,111100.0,111090.0,0.1810342]
[1761350054315,0.87120482,111100.0,111090.0,0.1810342]
[1761350057711,0.56294609,111100.0,111090.0,0.1810342]
[1761350057923,0.87120482,111100.0,111090.0,0.1810342]
[1761350059685,3.87120482,111100.0,111090.0,0.1810342]
[1761350059897,3.87120482,111100.0,111090.0,0.001]
[1761350060109,3.87120482,111100.0,111090.0,0.1810342]
[1761350060771,3.88922482,111100.0,111090.0,0.001]
[1761350060974,3.87120482,111100.0,111090.0,0.1810342]
[1761350065280,3.87120482,111100.0,111090.0,0.001]
[1761350067621,3.87120482,111100.0,111090.0,0.1810342]
[1761350067833,3.87120482,111100.0,111090.0,0.001]
[1761350068976,3.87120482,111100.0,111090.0,0.1810342]
[1761350069403,3.87120482,111100.0,111090.0,0.001]
[1761350069853,3.51603721,111100.0,111090.0,0.001]
[1761350079568,4.16429594,111100.0,111090.0,0.001]
[1761350079748,4.1837498,111100.0,111090.0,0.001]
[1761350080902,3.56723234,111100.0,111090.0,0.001]
[1761350081111,4.1837498,111100.0,111090.0,0.001]
[1761350086750,3.87556912,111100.0,111090.0,0.001]
[1761350095276,3.85611526,111100.0,111090.0,0.001]
[1761350095477,3.87556354,111100.0,111090.0,0.001]
[1761350116876,4.00156483,111100.0,111090.0,0.001]
[1761350117081,4.12391087,111100.0,111090.0,0.001]
[1761350117731,4.15633297,111100.0,111090.0,0.001]
[1761350118353,3.5200342,111090.0,111080.0,0.00463636]
[1761350118605,3.93763827,111090.0,111080.0,0.00463636]
[1761350119108,3.96468614,111090.0,111080.0,0.00463636]
[1761350120343,3.96468614,111090.0,111080.0,0.00563636]
[1761350123075,4.30290535,111090.0,111080.0,0.00563636]
[1761350123283,4.38696533,111090.0,111080.0,0.00563636]
[1761350123506,4.41127569,111090.0,111080.0,0.00563636]
[1761350124134,4.41127569,111090.0,111080.0,0.00463636]
[1761350124280,4.41427569,111090.0,111080.0,0.00463636]
[1761350124696,4.33021571,111090.0,111080.0,0.00463636]
[1761350125141,4.30590535,111090.0,111080.0,0.00463636]
[1761350126920,4.3730071,111090.0,111080.0,0.00463636]
[1761350127344,4.39731746,111090.0,111080.0,0.00463636]
[1761350134140,4.36743503,111090.0,111080.0,0.00463636]
[1761350146211,4.39985713,111090.0,111080.0,0.00463636]
[1761350148724,4.40007723,111090.0,111080.0,0.00463636]
[1761350152435,3.78318357,111090.0,111080.0,0.00463636]
[1761350152687,4.0916304,111090.0,111080.0,0.00463636]
[1761350154373,4.06732004,111090.0,111080.0,0.00463636]
[1761350155108,3.75887321,111090.0,111080.0,0.00463636]
[1761350155332,4.06732004,111090.0,111080.0,0.00463636]
[1761350161038,4.09164712,111090.0,111080.0,0.00463636]
[1761350162469,4.02454537,111090.0,111080.0,0.00463636]
[1761350162661,3.68367644,111090.0,111080.0,0.00463636]
[1761350162863,3.46186716,111090.0,111080.0,0.00463636]
[1761350163117,3.95034819,111090.0,111080.0,0.00463636]
[1761350163318,3.94934819,111090.0,111080.0,0.00463636]
[1761350163690,3.94734819,111090.0,111080.0,0.00463636]
[1761350163889,3.94834819,111090.0,111080.0,0.00463636]
[1761350170852,3.92889991,111090.0,111080.0,0.00463636]
[1761350171054,3.94834013,111090.0,111080.0,0.00463636]
[1761350176015,3.92129226,111090.0,111080.0,0.00463636]
[1761350189293,3.94559254,111090.0,111080.0,0.00463636]
[1761350194992,3.92129226,111090.0,111080.0,0.00463636]
[1761350198466,3.34299222,111090.0,111080.0,0.18468677]
[1761350198680,3.34299222,111090.0,111080.0,0.4931336]
[1761350199239,3.34199222,111090.0,111080.0,0.18468677]
[1761350200102,3.34199222,111090.0,111080.0,0.18568677]
[1761350201293,3.322552,111090.0,111080.0,0.18568677]
[1761350220298,3.63083791,111090.0,111080.0,0.18568677]
[1761350221495,3.322552,111090.0,111080.0,0.18568677]
[1761350222865,3.5025862,111090.0,111080.0,0.18568677]
[1761350223492,3.322552,111090.0,111080.0,0.18568677]
[1761350223708,3.5025862,111090.0,111080.0,0.18568677]
[1761350225098,3.81087211,111090.0,111080.0,0.18568677]
[1761350226826,3.5025862,111090.0,111080.0,0.18568677]
[1761350227038,3.81087211,111090.0,111080.0,0.18568677]
[1761350227168,3.83031982,111090.0,111080.0,0.18568677]
[1761350242012,3.48832011,111090.0,111080.0,0.18568677]
[1761350243231,3.1800342,111090.0,111080.0,0.18568677]
[1761350245448,3.19949116,111090.0,111080.0,0.00563636]
[1761350246556,3.19949116,111090.0,111080.0,0.18568677]
[1761350248436,3.53949116,111090.0,111080.0,0.18568677]
[1761350257794,3.5394893,111090.0,111080.0,0.18568677]
[1761350272832,3.84781894,111090.0,111080.0,0.18568677]
[1761350274206,3.84782112,111090.0,111080.0,0.18568677]
[1761350281119,3.65507916,111090.0,111080.0,0.18568677]
[1761350281334,3.84782112,111090.0,111080.0,0.18568677]
[1761350282876,0.35945728,111090.0,111080.0,0.49401641]
[1761350283112,0.34,111090.0,111080.0,0.49401641]
[1761350284246,0.20778107,111100.0,111080.0,0.49401641]
[1761350284452,3.0,111090.0,111080.0,0.49401641]
[1761350289111,0.02776307,111100.0,111090.0,0.1800342]
[1761350289387,0.00071766,111100.0,111090.0,0.48836384]
[1761350289636,0.00071766,111100.0,111090.0,0.1800342]
[1761350290115,0.00071766,111100.0,111090.0,0.57818285]
[1761350290624,0.00071766,111100.0,111090.0,0.60522099]
[1761350291319,0.00071766,111100.0,111090.0,0.60622099]
[1761350291548,0.00071766,111100.0,111090.0,0.60522099]
[1761350291735,0.00071766,111100.0,111090.0,0.60622099]
[1761350292030,0.00071766,111100.0,111090.0,0.61022099]
[1761350307680,0.00071766,111100.0,111090.0,0.91855063]
[1761350310289,0.00071766,111100.0,111090.0,0.61022099]
[1761350311195,0.00071766,111100.0,111090.0,0.91855063]
[1761350311408,0.00071766,111100.0,111090.0,0.61022099]
[1761350318878,0.00071766,111100.0,111090.0,0.91855063]
[1761350321004,0.00071766,111100.0,111090.0,0.97619063]
[1761350324948,0.00071766,111100.0,111090.0,0.66786099]
[1761350334847,0.00071766,111100.0,111090.0,0.66766453]
[1761350336071,0.00071766,111100.0,111090.0,0.61002453]
[1761350336328,0.00071766,111100.0,111090.0,0.76778453]
[1761350343785,0.00071766,111100.0,111090.0,0.82542453]
[1761350344364,0.00071766,111100.0,111090.0,0.66766453]
[1761350344567,0.00071766,111100.0,111090.0,0.82542453]
[1761350356730,0.00071766,111100.0,111090.0,0.79838639]
[1761350362485,0.02703546,111120.0,111110.0,0.1800018]